[Event "*** Titled Tuesday Blitz"]
[Site "Chess.com"]
[Date "2020.05.12"]
[Round "3"]
[White "Firehand33"]
[Black "ristingho"]
[Result "1-0"]
[WhiteElo "2733"]
[BlackElo "2510"]
[TimeControl "180+1"]
[EndTime "10:28:31 PDT"]
[Termination "Firehand33 won by resignation"]

1. Nf3 {[%clk 0:03:00.9]} 1... c5 {[%clk 0:02:54.8]} 2. b3 {[%clk 0:03:01.2]}
2... Nc6 {[%clk 0:02:51]} 3. Bb2 {[%clk 0:03:02.1]} 3... d5 {[%clk 0:02:49]} 4.
g3 {[%clk 0:03:01.6]} 4... f6 {[%clk 0:02:48.6]} 5. Bg2 {[%clk 0:03:02.1]} 5...
e5 {[%clk 0:02:48.6]} 6. O-O {[%clk 0:03:02.7]} 6... Be6 {[%clk 0:02:42.1]} 7.
e3 {[%clk 0:03:02.6]} 7... Bd6 {[%clk 0:02:38.5]} 8. d4 {[%clk 0:03:02.2]} 8...
cxd4 {[%clk 0:02:36]} 9. exd4 {[%clk 0:03:03.1]} 9... e4 {[%clk 0:02:36.3]} 10.
Nfd2 {[%clk 0:03:03.4]} 10... Nge7 {[%clk 0:02:36.1]} 11. c4 {[%clk 0:03:03.1]}
11... f5 {[%clk 0:02:35]} 12. Nc3 {[%clk 0:03:03]} 12... O-O {[%clk 0:02:33.1]}
13. cxd5 {[%clk 0:02:58.2]} 13... Nxd5 {[%clk 0:02:32.9]} 14. Nc4 {[%clk
0:02:58.1]} 14... Bb4 {[%clk 0:02:22.1]} 15. Nxd5 {[%clk 0:02:56.6]} 15... Bxd5
{[%clk 0:02:13.7]} 16. Ne3 {[%clk 0:02:56.7]} 16... Ne7 {[%clk 0:02:01.2]} 17.
Qe2 {[%clk 0:02:44.4]} 17... Rc8 {[%clk 0:01:58]} 18. Qb5 {[%clk 0:02:31.5]}
18... Qb6 {[%clk 0:01:35]} 19. Qxb6 {[%clk 0:02:26.5]} 19... axb6 {[%clk
0:01:35.9]} 20. Rac1 {[%clk 0:02:18.1]} 20... Bd2 {[%clk 0:01:34.6]} 21. Rxc8
{[%clk 0:02:10.6]} 21... Rxc8 {[%clk 0:01:35.5]} 22. Ba3 {[%clk 0:02:09.2]}
22... Bxe3 {[%clk 0:01:21.5]} 23. fxe3 {[%clk 0:02:10.1]} 23... Kf7 {[%clk
0:01:14.7]} 24. Bxe7 {[%clk 0:02:06.9]} 24... Kxe7 {[%clk 0:01:15.6]} 25. Rxf5
{[%clk 0:02:06.9]} 25... Rc1+ {[%clk 0:01:15.5]} 26. Bf1 {[%clk 0:01:57.8]}
26... Be6 {[%clk 0:01:14.9]} 27. Re5 {[%clk 0:01:48.9]} 27... Kd6 {[%clk
0:01:07.5]} 28. Kf2 {[%clk 0:01:48.7]} 28... Rc2+ {[%clk 0:01:05.7]} 29. Ke1
{[%clk 0:01:48.3]} 29... Rxa2 {[%clk 0:01:01.4]} 30. Bc4 {[%clk 0:01:36.1]}
30... Bxc4 {[%clk 0:00:43]} 31. bxc4 {[%clk 0:01:37]} 31... Rxh2 {[%clk
0:00:39.7]} 32. Rxe4 {[%clk 0:01:37.3]} 32... Rc2 {[%clk 0:00:40.4]} 33. d5
{[%clk 0:01:23.7]} 33... b5 {[%clk 0:00:40.3]} 34. cxb5 {[%clk 0:01:17.3]} 34...
Kxd5 {[%clk 0:00:40]} 35. Re7 {[%clk 0:01:17.1]} 35... Rg2 {[%clk 0:00:33.9]}
36. Rxg7 {[%clk 0:01:16.5]} 36... Kc5 {[%clk 0:00:33.7]} 37. Rxh7 {[%clk
0:01:09.7]} 37... Kxb5 {[%clk 0:00:24.5]} 38. Rxb7+ {[%clk 0:01:08.9]} 38... Kc4
{[%clk 0:00:25.1]} 39. Rg7 {[%clk 0:01:02.1]} 39... Kd3 {[%clk 0:00:24.8]} 40.
Kf1 {[%clk 0:01:02.6]} 40... Rh2 {[%clk 0:00:23.8]} 41. Re7 {[%clk 0:01:02.1]}
41... Ra2 {[%clk 0:00:21.8]} 42. Re5 {[%clk 0:00:56.7]} 42... Rb2 {[%clk
0:00:21.5]} 43. g4 {[%clk 0:00:56.7]} 43... Rb4 {[%clk 0:00:20.4]} 44. g5 {[%clk
0:00:56.1]} 44... Rb2 {[%clk 0:00:18.4]} 45. g6 {[%clk 0:00:53.6]} 45... Rb6
{[%clk 0:00:17.3]} 46. g7 {[%clk 0:00:49.3]} 46... Rg6 {[%clk 0:00:16.9]} 47.
Re7 {[%clk 0:00:48.9]} 47... Rg5 {[%clk 0:00:16.1]} 48. Kf2 {[%clk 0:00:48.7]}
48... Rg6 {[%clk 0:00:16.6]} 49. Kf3 {[%clk 0:00:48.9]} 49... Rg5 {[%clk
0:00:17]} 50. Kf4 {[%clk 0:00:49.3]} 50... Rg1 {[%clk 0:00:16.8]} 51. Rd7+
{[%clk 0:00:49]} 51... Ke2 {[%clk 0:00:16.5]} 52. e4 {[%clk 0:00:47.4]} 52...
Rf1+ {[%clk 0:00:15.6]} 53. Ke5 {[%clk 0:00:46.8]} 53... Rg1 {[%clk 0:00:16.5]}
54. Kf6 {[%clk 0:00:46.2]} 54... Ke3 {[%clk 0:00:17.4]} 55. Kf7 {[%clk
0:00:43.8]} 55... Rf1+ {[%clk 0:00:16.9]} 56. Ke8 {[%clk 0:00:41.4]} 56... Rg1
{[%clk 0:00:16.7]} 57. Kf8 {[%clk 0:00:41.4]} 1-0

[Event "*** Titled Tuesday Blitz"]
[Site "Chess.com"]
[Date "2020.05.12"]
[Round "3"]
[White "atalz0"]
[Black "yobdc"]
[Result "0-1"]
[WhiteElo "2447"]
[BlackElo "1816"]
[TimeControl "180+1"]
[EndTime "10:28:31 PDT"]
[Termination "yobdc won on time"]

1. d4 {[%clk 0:03:00.9]} 1... Nf6 {[%clk 0:02:58.9]} 2. c4 {[%clk 0:03:00.6]}
2... e6 {[%clk 0:02:59.3]} 3. Nc3 {[%clk 0:03:00.1]} 3... Bb4 {[%clk 0:02:59.5]}
4. Qc2 {[%clk 0:03:00]} 4... O-O {[%clk 0:02:59.1]} 5. e4 {[%clk 0:02:58.8]}
5... d5 {[%clk 0:02:58.5]} 6. e5 {[%clk 0:02:58.6]} 6... Ne4 {[%clk 0:02:59]} 7.
Bd3 {[%clk 0:02:59.1]} 7... c5 {[%clk 0:02:59.4]} 8. Nf3 {[%clk 0:02:58.9]} 8...
cxd4 {[%clk 0:02:59]} 9. Nxd4 {[%clk 0:02:59.8]} 9... Nd7 {[%clk 0:02:42.8]} 10.
Bxe4 {[%clk 0:02:59.7]} 10... dxe4 {[%clk 0:02:40.1]} 11. Qxe4 {[%clk
0:03:00.6]} 11... Qc7 {[%clk 0:02:30.7]} 12. O-O {[%clk 0:03:00.2]} 12... Qxe5
{[%clk 0:02:29]} 13. Qh4 {[%clk 0:02:59.8]} 13... Nf6 {[%clk 0:01:59.2]} 14.
Ndb5 {[%clk 0:02:55.5]} 14... a6 {[%clk 0:01:48.3]} 15. Bf4 {[%clk 0:02:44.3]}
15... Qh5 {[%clk 0:01:47.4]} 16. Qxh5 {[%clk 0:02:26.5]} 16... Nxh5 {[%clk
0:01:48.3]} 17. Bd6 {[%clk 0:02:25.4]} 17... Bxd6 {[%clk 0:01:35]} 18. Nxd6
{[%clk 0:02:26.3]} 18... Rd8 {[%clk 0:01:33.3]} 19. c5 {[%clk 0:02:09.5]} 19...
Nf6 {[%clk 0:01:25.4]} 20. Rfd1 {[%clk 0:02:04.5]} 20... Rb8 {[%clk 0:01:14.2]}
21. b4 {[%clk 0:01:38.4]} 21... Bd7 {[%clk 0:01:13.6]} 22. Nc4 {[%clk
0:01:07.8]} 22... Bc6 {[%clk 0:01:09.6]} 23. Na5 {[%clk 0:01:07.8]} 23... Bd5
{[%clk 0:01:06.6]} 24. f3 {[%clk 0:01:02.1]} 24... Rdc8 {[%clk 0:00:56.2]} 25.
a3 {[%clk 0:00:55.4]} 25... b6 {[%clk 0:00:51.3]} 26. Nxd5 {[%clk 0:00:53.5]}
26... Nxd5 {[%clk 0:00:46.8]} 27. cxb6 {[%clk 0:00:53.6]} 27... Rxb6 {[%clk
0:00:45.1]} 28. Rac1 {[%clk 0:00:48.8]} 28... Rxc1 {[%clk 0:00:42.1]} 29. Rxc1
{[%clk 0:00:49.7]} 29... g5 {[%clk 0:00:42.4]} 30. Rc8+ {[%clk 0:00:44.1]} 30...
Kg7 {[%clk 0:00:42.4]} 31. Kf2 {[%clk 0:00:32.3]} 31... h5 {[%clk 0:00:41.4]}
32. g3 {[%clk 0:00:27.8]} 32... g4 {[%clk 0:00:40.9]} 33. f4 {[%clk 0:00:24.2]}
33... Rd6 {[%clk 0:00:30.6]} 34. Nc4 {[%clk 0:00:21.4]} 34... Rd7 {[%clk
0:00:27.8]} 35. Ne5 {[%clk 0:00:19.9]} 35... Rd6 {[%clk 0:00:27.5]} 36. Rc6
{[%clk 0:00:17.3]} 36... Rd8 {[%clk 0:00:25.9]} 37. Rxa6 {[%clk 0:00:16]} 37...
Nc3 {[%clk 0:00:18.9]} 38. Ra7 {[%clk 0:00:13.8]} 38... Rd2+ {[%clk 0:00:18.5]}
39. Ke3 {[%clk 0:00:12.4]} 39... Rxh2 {[%clk 0:00:18.5]} 40. Rxf7+ {[%clk
0:00:11.5]} 40... Kg8 {[%clk 0:00:16.4]} 41. Rd7 {[%clk 0:00:05.8]} 41... h4
{[%clk 0:00:14.3]} 42. Nxg4 {[%clk 0:00:04.1]} 42... hxg3 {[%clk 0:00:14.5]} 0-1

[Event "*** Titled Tuesday Blitz"]
[Site "Chess.com"]
[Date "2020.05.12"]
[Round "3"]
[White "letantha"]
[Black "ARMQUEEN"]
[Result "1-0"]
[WhiteElo "2160"]
[BlackElo "2335"]
[TimeControl "180+1"]
[EndTime "10:28:32 PDT"]
[Termination "letantha won by resignation"]

1. e4 {[%clk 0:03:00.9]} 1... c5 {[%clk 0:02:59.6]} 2. c3 {[%clk 0:02:54.9]}
2... Nf6 {[%clk 0:02:58.4]} 3. e5 {[%clk 0:02:45.2]} 3... Nd5 {[%clk 0:02:57.9]}
4. Nf3 {[%clk 0:02:38.7]} 4... Nc6 {[%clk 0:02:54.4]} 5. Bc4 {[%clk 0:02:36.3]}
5... Nb6 {[%clk 0:02:54.1]} 6. Bb3 {[%clk 0:02:36.1]} 6... c4 {[%clk 0:02:54.2]}
7. Bc2 {[%clk 0:02:35.9]} 7... d6 {[%clk 0:02:54.5]} 8. exd6 {[%clk 0:02:30.6]}
8... Qxd6 {[%clk 0:02:54.3]} 9. O-O {[%clk 0:02:29.8]} 9... Bg4 {[%clk
0:02:53.2]} 10. Re1 {[%clk 0:02:29.7]} 10... f6 {[%clk 0:02:49.5]} 11. h3 {[%clk
0:02:00.8]} 11... Bh5 {[%clk 0:02:48.7]} 12. b3 {[%clk 0:01:51.9]} 12... Ne5
{[%clk 0:02:38.1]} 13. Be4 {[%clk 0:01:51.7]} 13... O-O-O {[%clk 0:02:30.4]} 14.
Na3 {[%clk 0:01:45.3]} 14... e6 {[%clk 0:02:25.2]} 15. Nb5 {[%clk 0:01:42.2]}
15... Qb8 {[%clk 0:02:24.8]} 16. g4 {[%clk 0:01:28.9]} 16... Bg6 {[%clk
0:02:14.8]} 17. bxc4 {[%clk 0:01:18.7]} 17... Bxe4 {[%clk 0:02:09.5]} 18. Rxe4
{[%clk 0:01:19.6]} 18... Nexc4 {[%clk 0:02:08]} 19. Qe2 {[%clk 0:01:13]} 19...
e5 {[%clk 0:02:06.7]} 20. Rxc4+ {[%clk 0:01:12.4]} 20... Nxc4 {[%clk 0:02:05.4]}
21. Qxc4+ {[%clk 0:01:13.3]} 21... Kd7 {[%clk 0:02:03.1]} 22. d4 {[%clk
0:01:08.8]} 22... a6 {[%clk 0:02:02.5]} 23. Qd5+ {[%clk 0:00:59.3]} 23... Ke8
{[%clk 0:02:01.6]} 24. Qe6+ {[%clk 0:00:59.6]} 24... Be7 {[%clk 0:02:01.3]} 25.
Ba3 {[%clk 0:01:00.1]} 25... Rd7 {[%clk 0:01:57.4]} 26. Bxe7 {[%clk 0:00:52.5]}
26... Rxe7 {[%clk 0:01:56.4]} 27. Nd6+ {[%clk 0:00:51.9]} 27... Kf8 {[%clk
0:01:56.2]} 28. Qc8+ {[%clk 0:00:44.9]} 28... Qxc8 {[%clk 0:01:55.5]} 29. Nxc8
{[%clk 0:00:45.8]} 29... Rc7 {[%clk 0:01:55.1]} 30. Nd6 {[%clk 0:00:44]} 30...
exd4 {[%clk 0:01:53.9]} 31. Nxd4 {[%clk 0:00:42.4]} 31... Ke7 {[%clk 0:01:47.9]}
32. N6f5+ {[%clk 0:00:40.5]} 32... Kf7 {[%clk 0:01:46.5]} 33. Re1 {[%clk
0:00:40.1]} 33... Rhc8 {[%clk 0:01:33.9]} 34. h4 {[%clk 0:00:38.9]} 34... Rd8
{[%clk 0:01:27.2]} 35. Ne6 {[%clk 0:00:37.1]} 35... Re8 {[%clk 0:01:26.3]} 36.
Nfd4 {[%clk 0:00:21.2]} 36... Rxc3 {[%clk 0:01:23.9]} 37. h5 {[%clk 0:00:20.3]}
37... b5 {[%clk 0:01:22.3]} 38. Kg2 {[%clk 0:00:17.4]} 38... Rc4 {[%clk
0:01:22.4]} 39. Re3 {[%clk 0:00:15.7]} 39... Re7 {[%clk 0:01:20.4]} 40. Nd8+
{[%clk 0:00:15.5]} 40... Ke8 {[%clk 0:01:19.1]} 41. N8e6 {[%clk 0:00:16.2]}
41... b4 {[%clk 0:01:17.7]} 42. Nxg7+ {[%clk 0:00:15.4]} 42... Kf7 {[%clk
0:01:15.1]} 43. Rxe7+ {[%clk 0:00:16]} 43... Kxe7 {[%clk 0:01:14.5]} 44. Ngf5+
{[%clk 0:00:16.9]} 44... Kd7 {[%clk 0:01:12.7]} 45. f4 {[%clk 0:00:16.2]} 45...
a5 {[%clk 0:01:06.8]} 46. g5 {[%clk 0:00:16.6]} 46... fxg5 {[%clk 0:01:04.9]}
47. fxg5 {[%clk 0:00:17.5]} 47... a4 {[%clk 0:01:04.1]} 48. g6 {[%clk
0:00:17.7]} 48... hxg6 {[%clk 0:01:04.2]} 49. hxg6 {[%clk 0:00:18.6]} 49... Rc8
{[%clk 0:01:04.4]} 50. g7 {[%clk 0:00:17.7]} 50... Rg8 {[%clk 0:01:03.8]} 51.
Kf3 {[%clk 0:00:15.9]} 51... Ke8 {[%clk 0:01:03.7]} 52. Ke4 {[%clk 0:00:15.9]}
52... Kf7 {[%clk 0:01:04]} 53. Nh6+ {[%clk 0:00:11.9]} 53... Kxg7 {[%clk
0:00:59.7]} 54. Nxg8 {[%clk 0:00:12.8]} 54... b3 {[%clk 0:00:57.5]} 55. Nxb3
{[%clk 0:00:09.1]} 55... axb3 {[%clk 0:00:55.2]} 56. axb3 {[%clk 0:00:10]} 56...
Kxg8 {[%clk 0:00:55.6]} 57. Kd5 {[%clk 0:00:10.3]} 57... Kf7 {[%clk 0:00:56.1]}
58. Kd6 {[%clk 0:00:10]} 58... Ke8 {[%clk 0:00:56.3]} 59. Kc7 {[%clk 0:00:10.3]}
59... Ke7 {[%clk 0:00:56.8]} 60. b4 {[%clk 0:00:10.6]} 60... Ke6 {[%clk
0:00:57.4]} 61. b5 {[%clk 0:00:11.3]} 61... Kd5 {[%clk 0:00:58.3]} 62. b6 {[%clk
0:00:12.2]} 1-0

[Event "*** Titled Tuesday Blitz"]
[Site "Chess.com"]
[Date "2020.05.12"]
[Round "3"]
[White "MikeSailer"]
[Black "DanilNajdin"]
[Result "1/2-1/2"]
[WhiteElo "2005"]
[BlackElo "2289"]
[TimeControl "180+1"]
[EndTime "10:28:33 PDT"]
[Termination "Game drawn by repetition"]

1. d4 {[%clk 0:02:00.9]} 1... d5 {[%clk 0:02:58.1]} 2. Nf3 {[%clk 0:01:58.6]}
2... Nf6 {[%clk 0:02:56.8]} 3. Bf4 {[%clk 0:01:59.1]} 3... c5 {[%clk 0:02:52.8]}
4. e3 {[%clk 0:01:58.7]} 4... e6 {[%clk 0:02:46.3]} 5. Nbd2 {[%clk 0:01:55.5]}
5... b6 {[%clk 0:02:43.1]} 6. c3 {[%clk 0:01:53.5]} 6... Bd6 {[%clk 0:02:39.4]}
7. Bxd6 {[%clk 0:01:51.7]} 7... Qxd6 {[%clk 0:02:39.1]} 8. Bd3 {[%clk
0:01:52.3]} 8... Nc6 {[%clk 0:02:36.5]} 9. O-O {[%clk 0:01:50.9]} 9... e5 {[%clk
0:02:30]} 10. dxe5 {[%clk 0:01:47.1]} 10... Nxe5 {[%clk 0:02:30.9]} 11. Nxe5
{[%clk 0:01:46.9]} 11... Qxe5 {[%clk 0:02:31.8]} 12. Qc2 {[%clk 0:01:28.5]}
12... O-O {[%clk 0:02:24.9]} 13. a4 {[%clk 0:01:18.4]} 13... Bb7 {[%clk
0:02:07.9]} 14. a5 {[%clk 0:01:17.7]} 14... Ng4 {[%clk 0:01:56.3]} 15. Nf3
{[%clk 0:01:16.6]} 15... Qh5 {[%clk 0:01:55.5]} 16. h3 {[%clk 0:01:14.6]} 16...
f5 {[%clk 0:01:32.3]} 17. hxg4 {[%clk 0:00:57.8]} 17... fxg4 {[%clk 0:01:33.2]}
18. Nh2 {[%clk 0:00:49.8]} 18... Rf6 {[%clk 0:01:30.7]} 19. Bxh7+ {[%clk
0:00:41.1]} 19... Kh8 {[%clk 0:01:26]} 20. Nxg4 {[%clk 0:00:36.2]} 20... Qxg4
{[%clk 0:01:21.6]} 21. f3 {[%clk 0:00:32.8]} 21... Qh4 {[%clk 0:01:10.6]} 22.
Bf5 {[%clk 0:00:31.6]} 22... Raf8 {[%clk 0:00:58.3]} 23. Bh3 {[%clk 0:00:30.6]}
23... Rh6 {[%clk 0:00:49.2]} 24. axb6 {[%clk 0:00:30]} 24... axb6 {[%clk
0:00:48.9]} 25. Ra7 {[%clk 0:00:29.2]} 25... Bc8 {[%clk 0:00:47.6]} 26. Bxc8
{[%clk 0:00:25.3]} 26... Rxc8 {[%clk 0:00:45.9]} 27. Qf5 {[%clk 0:00:22.6]}
27... Rg8 {[%clk 0:00:27.4]} 28. Rfa1 {[%clk 0:00:22.5]} 28... d4 {[%clk
0:00:23.9]} 29. cxd4 {[%clk 0:00:21.6]} 29... cxd4 {[%clk 0:00:23.7]} 30. e4
{[%clk 0:00:20.7]} 30... d3 {[%clk 0:00:22.5]} 31. Ra8 {[%clk 0:00:17.9]} 31...
Rf6 {[%clk 0:00:16.1]} 32. Rxg8+ {[%clk 0:00:17.3]} 32... Kxg8 {[%clk 0:00:17]}
33. Ra8+ {[%clk 0:00:17]} 33... Kf7 {[%clk 0:00:16.5]} 34. Ra7+ {[%clk
0:00:13.3]} 34... Kg8 {[%clk 0:00:16.6]} 35. Ra8+ {[%clk 0:00:10.5]} 35... Kf7
{[%clk 0:00:16.6]} 36. Ra7+ {[%clk 0:00:05.5]} 36... Kg8 {[%clk 0:00:16.6]} 37.
Ra8+ {[%clk 0:00:05.1]} 1/2-1/2

[Event "*** Titled Tuesday Blitz"]
[Site "Chess.com"]
[Date "2020.05.12"]
[Round "3"]
[White "wild_cat99"]
[Black "Chepaschess"]
[Result "1/2-1/2"]
[WhiteElo "2595"]
[BlackElo "2764"]
[TimeControl "180+1"]
[EndTime "10:28:34 PDT"]
[Termination "Game drawn by agreement"]

1. Nf3 {[%clk 0:03:00.7]} 1... c5 {[%clk 0:02:59.4]} 2. e4 {[%clk 0:03:00.3]}
2... d6 {[%clk 0:02:58.8]} 3. d4 {[%clk 0:02:54.4]} 3... cxd4 {[%clk 0:02:59.7]}
4. Nxd4 {[%clk 0:02:55.3]} 4... Nf6 {[%clk 0:02:59.8]} 5. f3 {[%clk 0:02:55.9]}
5... e5 {[%clk 0:02:58.9]} 6. Bb5+ {[%clk 0:02:55]} 6... Bd7 {[%clk 0:02:51.3]}
7. Bxd7+ {[%clk 0:02:54.1]} 7... Nbxd7 {[%clk 0:02:52.2]} 8. Nf5 {[%clk
0:02:55]} 8... d5 {[%clk 0:02:50.3]} 9. exd5 {[%clk 0:02:54.4]} 9... Nb6 {[%clk
0:02:41.6]} 10. Bg5 {[%clk 0:02:25.8]} 10... Qd7 {[%clk 0:02:09]} 11. Ne3 {[%clk
0:02:22.8]} 11... Nfxd5 {[%clk 0:02:07.2]} 12. Nxd5 {[%clk 0:02:16.1]} 12...
Nxd5 {[%clk 0:02:08.1]} 13. O-O {[%clk 0:02:16.1]} 13... Bc5+ {[%clk 0:02:03]}
14. Kh1 {[%clk 0:02:16.5]} 14... f6 {[%clk 0:02:00.6]} 15. Bd2 {[%clk
0:02:13.6]} 15... Rd8 {[%clk 0:01:59.6]} 16. Qe2 {[%clk 0:02:11.6]} 16... O-O
{[%clk 0:01:50.6]} 17. Qc4 {[%clk 0:02:11.1]} 17... Bb6 {[%clk 0:01:46.6]} 18.
Nc3 {[%clk 0:02:10.9]} 18... Qf7 {[%clk 0:01:45]} 19. Nxd5 {[%clk 0:02:07.2]}
19... Qxd5 {[%clk 0:01:45.9]} 20. Qxd5+ {[%clk 0:02:06.9]} 20... Rxd5 {[%clk
0:01:46.8]} 21. Bb4 {[%clk 0:01:58.9]} 21... Rfd8 {[%clk 0:01:46.1]} 22. c4
{[%clk 0:01:59]} 22... Rd4 {[%clk 0:01:41.5]} 23. b3 {[%clk 0:01:59.4]} 23...
Kf7 {[%clk 0:01:35.8]} 24. g3 {[%clk 0:01:55.8]} 24... Rd3 {[%clk 0:01:29.3]}
25. Kg2 {[%clk 0:01:55.1]} 25... a5 {[%clk 0:01:28.9]} 26. Be1 {[%clk
0:01:50.6]} 26... Re3 {[%clk 0:01:28.5]} 27. Rf2 {[%clk 0:01:44.2]} 27... h5
{[%clk 0:01:22.8]} 28. Rc2 {[%clk 0:01:19.4]} 28... Red3 {[%clk 0:01:14.9]} 29.
c5 {[%clk 0:01:19]} 29... Bc7 {[%clk 0:01:14.5]} 30. Kf2 {[%clk 0:01:14.9]}
30... g5 {[%clk 0:01:07.9]} 31. Ke2 {[%clk 0:01:15]} 31... g4 {[%clk 0:01:08.4]}
32. fxg4 {[%clk 0:01:13.9]} 32... hxg4 {[%clk 0:01:09.3]} 33. Rac1 {[%clk
0:01:06.7]} 33... R3d5 {[%clk 0:01:06.5]} 34. Rc4 {[%clk 0:01:05.3]} 34... Rh8
{[%clk 0:01:03.7]} 35. Rxg4 {[%clk 0:00:58.8]} 35... Rxh2+ {[%clk 0:01:03.6]}
36. Bf2 {[%clk 0:00:59.6]} 36... f5 {[%clk 0:01:00.4]} 37. Rh4 {[%clk
0:00:58.7]} 37... Rxh4 {[%clk 0:01:00]} 38. gxh4 {[%clk 0:00:59.6]} 38... e4
{[%clk 0:00:57.2]} 39. Rc4 {[%clk 0:00:56.5]} 39... Ke6 {[%clk 0:00:53.5]} 40.
h5 {[%clk 0:00:55.4]} 40... Rd8 {[%clk 0:00:51.1]} 41. h6 {[%clk 0:00:47.3]}
41... Bf4 {[%clk 0:00:50.8]} 42. c6 {[%clk 0:00:43.1]} 42... b5 {[%clk
0:00:43.9]} 43. Rc5 {[%clk 0:00:42.3]} 43... Bd6 {[%clk 0:00:29.4]} 44. Rxb5
{[%clk 0:00:41.1]} 44... Rh8 {[%clk 0:00:27.1]} 45. Rxa5 {[%clk 0:00:33.4]}
45... Rxh6 {[%clk 0:00:21.3]} 46. c7 {[%clk 0:00:33.5]} 46... Bxc7 {[%clk
0:00:19.6]} 47. Ra6+ {[%clk 0:00:33]} 47... Bd6 {[%clk 0:00:20.1]} 48. Bg3
{[%clk 0:00:32.2]} 48... Kd5 {[%clk 0:00:20.4]} 49. Bxd6 {[%clk 0:00:29.7]}
49... Rxd6 {[%clk 0:00:21.3]} 50. Rxd6+ {[%clk 0:00:26.5]} 50... Kxd6 {[%clk
0:00:22.2]} 51. b4 {[%clk 0:00:24.2]} 51... f4 {[%clk 0:00:21.2]} 52. a4 {[%clk
0:00:23]} 52... Kd5 {[%clk 0:00:21.8]} 53. b5 {[%clk 0:00:22.5]} 53... Kc5
{[%clk 0:00:21.8]} 54. Kf2 {[%clk 0:00:20.1]} 54... Kb6 {[%clk 0:00:21.2]}
1/2-1/2

[Event "*** Titled Tuesday Blitz"]
[Site "Chess.com"]
[Date "2020.05.12"]
[Round "3"]
[White "Nara_Kh"]
[Black "Klavdia_Nik"]
[Result "0-1"]
[WhiteElo "2302"]
[BlackElo "2081"]
[TimeControl "180+1"]
[EndTime "10:28:35 PDT"]
[Termination "Klavdia_Nik won by resignation"]

1. e4 {[%clk 0:03:00.9]} 1... e5 {[%clk 0:02:57]} 2. Nf3 {[%clk 0:03:00.4]} 2...
Nc6 {[%clk 0:02:57.3]} 3. Bb5 {[%clk 0:03:00.8]} 3... a6 {[%clk 0:02:56.7]} 4.
Ba4 {[%clk 0:03:00.4]} 4... Nf6 {[%clk 0:02:56.8]} 5. d3 {[%clk 0:03:00.6]} 5...
b5 {[%clk 0:02:55.4]} 6. Bb3 {[%clk 0:03:00]} 6... Be7 {[%clk 0:02:53]} 7. O-O
{[%clk 0:02:59.5]} 7... d6 {[%clk 0:02:46.9]} 8. h3 {[%clk 0:02:57.2]} 8... Na5
{[%clk 0:02:39.8]} 9. Nc3 {[%clk 0:02:47.5]} 9... Nxb3 {[%clk 0:02:37.3]} 10.
axb3 {[%clk 0:02:46.7]} 10... Bb7 {[%clk 0:02:37.9]} 11. Re1 {[%clk 0:02:42.8]}
11... O-O {[%clk 0:02:38.1]} 12. d4 {[%clk 0:02:42.1]} 12... exd4 {[%clk
0:02:29.5]} 13. Nxd4 {[%clk 0:02:43]} 13... Nd7 {[%clk 0:02:15.6]} 14. Nf5
{[%clk 0:02:36.7]} 14... Bf6 {[%clk 0:02:13.1]} 15. Nd5 {[%clk 0:02:35.8]} 15...
Re8 {[%clk 0:02:03]} 16. Nxf6+ {[%clk 0:02:28.6]} 16... Qxf6 {[%clk 0:01:57.3]}
17. Qg4 {[%clk 0:02:08.5]} 17... Ne5 {[%clk 0:01:41.2]} 18. Qg3 {[%clk
0:02:04.7]} 18... Qg6 {[%clk 0:01:31]} 19. f4 {[%clk 0:01:53.4]} 19... Nd7
{[%clk 0:01:22.4]} 20. Qxg6 {[%clk 0:01:33.2]} 20... hxg6 {[%clk 0:01:21.7]} 21.
Ng3 {[%clk 0:01:33.1]} 21... Nc5 {[%clk 0:01:21.2]} 22. e5 {[%clk 0:01:29.3]}
22... dxe5 {[%clk 0:01:19.1]} 23. fxe5 {[%clk 0:01:29.1]} 23... Rad8 {[%clk
0:01:13.3]} 24. b4 {[%clk 0:01:24.2]} 24... Ne6 {[%clk 0:01:13.1]} 25. Be3
{[%clk 0:01:22.6]} 25... Rd5 {[%clk 0:01:07.1]} 26. Bf2 {[%clk 0:00:57.3]} 26...
Nf4 {[%clk 0:01:02.1]} 27. Be3 {[%clk 0:00:45.3]} 27... Rdxe5 {[%clk 0:00:58.4]}
28. Bxf4 {[%clk 0:00:41.1]} 28... Rxe1+ {[%clk 0:00:56.8]} 29. Rxe1 {[%clk
0:00:42]} 29... Rxe1+ {[%clk 0:00:56.4]} 30. Kf2 {[%clk 0:00:42.9]} 30... Rb1
{[%clk 0:00:51.8]} 31. Be5 {[%clk 0:00:28.1]} 31... f6 {[%clk 0:00:51.8]} 32.
Bxc7 {[%clk 0:00:22.8]} 32... Rxb2 {[%clk 0:00:50.6]} 33. Bd6 {[%clk 0:00:19.7]}
33... Rxc2+ {[%clk 0:00:50.8]} 34. Ke3 {[%clk 0:00:19.9]} 34... Rxg2 {[%clk
0:00:50.2]} 35. Ne2 {[%clk 0:00:20.1]} 35... g5 {[%clk 0:00:43.5]} 36. Nd4
{[%clk 0:00:18.9]} 36... Ra2 {[%clk 0:00:40.9]} 37. Nf5 {[%clk 0:00:17]} 37...
Kf7 {[%clk 0:00:40.7]} 38. Kd4 {[%clk 0:00:17.1]} 38... Ra3 {[%clk 0:00:37.1]}
39. Kc5 {[%clk 0:00:16.9]} 39... Rxh3 {[%clk 0:00:35.6]} 40. Nd4 {[%clk
0:00:17]} 40... Be4 {[%clk 0:00:34.1]} 41. Kb6 {[%clk 0:00:17.1]} 41... g4
{[%clk 0:00:32.3]} 42. Kxa6 {[%clk 0:00:16.9]} 42... Bd3 {[%clk 0:00:30.4]} 43.
Nxb5 {[%clk 0:00:12.3]} 43... Bxb5+ {[%clk 0:00:28.5]} 44. Kxb5 {[%clk
0:00:12.3]} 44... g3 {[%clk 0:00:29.1]} 45. Kc6 {[%clk 0:00:12]} 45... g2 {[%clk
0:00:28.9]} 46. Bc5 {[%clk 0:00:12.3]} 46... Rc3 {[%clk 0:00:28.1]} 47. b5
{[%clk 0:00:12.6]} 47... Rxc5+ {[%clk 0:00:28.2]} 48. Kxc5 {[%clk 0:00:13.5]}
48... g1=Q+ {[%clk 0:00:27.8]} 0-1